bitfinex/quotes_SOLUSD_20251002
["timestamp","ask_amount","ask_price","bid_price","bid_amount"]
[1759427899982,10.87647521,230.13,230.09,4.3460999]
[1759427900182,10.87647521,230.13,230.1,0.7]
[1759427902304,31.65979068,230.21,230.1,4.34593653]
[1759427902481,41.84647521,230.2,230.11,0.7]
[1759427903385,46.19052386,230.2,230.12,4.34555883]
[1759427903584,46.19052386,230.2,230.13,0.7]
[1759427903788,41.84647521,230.2,230.13,0.7]
[1759427904106,46.19054652,230.2,230.13,0.7]
[1759427904291,0.33,230.19,230.12,4.34555883]
[1759427904495,0.33,230.19,230.13,20.8]
[1759427905085,10.87647521,230.18,230.13,25.14533487]
[1759427905314,41.51647521,230.18,230.14,0.7]
[1759427906212,41.51647521,230.18,230.14,5.04513361]
[1759427906583,10.87647521,230.22,230.15,0.7]
[1759427906811,11.20647521,230.22,230.15,0.7]
[1759427907695,0.33,230.21,230.12,21.5]
[1759427907895,0.33,230.21,230.12,0.7]
[1759427908312,4.34404865,230.2,230.12,5.04555268]
[1759427908520,10.87647521,230.18,230.14,0.5]
[1759427908820,10.87647521,230.18,230.14,1.2]
[1759427909184,10.87647521,230.18,230.15,0.7]
[1759427910212,4.34404865,230.2,230.15,0.7]
[1759427910387,30.64,230.19,230.14,4.34510612]
[1759427910582,0.33,230.18,230.13,20.8]
[1759427910782,30.64,230.19,230.13,25.84530062]
[1759427910984,1.80008657,230.14,229.99,0.7]
[1759427911303,1.80008657,230.08,229.98,0.7]
[1759427911490,1.80008657,230.08,229.95,0.7]
[1759427911491,31.09,230.07,229.95,0.7]
[1759427911687,32.91008657,230.06,229.95,0.7]
[1759427912017,1.80008657,230.04,229.92,0.7]
[1759427912217,4.34744804,230.02,229.92,5.0492183]
[1759427912387,0.33,230.01,229.92,5.0492183]
[1759427912586,0.33,230.01,229.92,0.7]
[1759427912788,0.33,230.01,229.92,5.04931209]
[1759427913004,0.33,230.01,229.93,0.7]
[1759427913619,11.20647521,230.01,229.93,0.7]
[1759427914306,4.6777951,230.01,229.93,5.04901301]
[1759427917911,11.20647521,230.0,229.9,0.7]
[1759427918107,0.33,229.99,229.9,0.7]
[1759427919312,4.34820419,229.98,229.9,5.04968678]
[1759427919538,10.87647521,229.96,229.91,0.7]
[1759427920211,10.87647521,229.96,229.88,3.72588356]
[1759427920212,10.87647521,229.96,229.89,4.34990647]
[1759427920415,10.87647521,229.96,229.92,0.7]
[1759427920616,10.87647521,229.96,229.93,0.7]
[1759427920999,10.87647521,229.96,229.94,0.7]
[1759427923317,30.74,229.97,229.94,0.7]
[1759427925327,30.74,229.97,229.89,15.22467266]
[1759427925509,30.74,229.97,229.92,0.7]
[1759427925708,30.74,229.97,229.93,0.7]
[1759427926799,10.87647521,229.96,229.93,0.7]
[1759427927111,10.87647521,229.96,229.94,0.7]
[1759427927699,10.87647521,229.96,229.93,4.34912046]
[1759427928025,10.87647521,229.96,229.93,5.04912046]
[1759427928917,10.87647521,229.96,229.93,0.7]
[1759427930208,10.87647521,229.96,229.93,5.04913089]
[1759427930711,0.33,230.02,229.94,0.7]
[1759427930908,30.68,230.01,229.94,0.7]
[1759427931103,31.01,230.01,229.94,0.7]
[1759427932027,0.33,230.01,229.94,0.7]
[1759427932224,35.02800506,230.0,229.94,0.7]
[1759427932637,0.33,229.99,229.92,0.7]
[1759427933822,4.67818949,229.99,229.92,5.04920736]
[1759427934415,10.87647521,229.98,229.93,0.7]
[1759427934727,10.87647521,229.98,229.92,4.34920736]
[1759427934728,10.87647521,229.97,229.94,0.7]
[1759427934923,10.87647521,229.97,229.95,0.7]
[1759427935527,10.87647521,229.97,229.92,25.84920736]
[1759427935725,10.87647521,229.97,229.93,0.7]
[1759427936230,10.87647521,229.97,229.92,25.14920736]
[1759427936530,10.87647521,229.97,229.94,0.7]
[1759427937734,10.87647521,229.97,229.95,0.7]
[1759427937919,10.87647521,229.97,229.94,4.34896024]
[1759427938234,10.87647521,229.97,229.95,0.7]
[1759427938545,10.87647521,229.97,229.94,4.34896024]
[1759427938710,10.87647521,229.97,229.94,0.7]
[1759427939534,10.87647521,229.97,229.92,20.8]
[1759427939715,10.87647521,229.97,229.92,25.84931703]
[1759427939922,15.55488728,229.97,229.92,20.8]
[1759427940225,15.55488728,229.97,229.92,21.5]
[1759427940418,15.55488728,229.97,229.89,10.87446698]
[1759427940419,0.33,229.96,229.89,4.34974162]
[1759427940808,4.67877147,229.95,229.88,0.2]
[1759427941029,30.66,229.94,229.88,0.9]
[1759427941226,4.67841736,229.97,229.89,0.7]
[1759427941434,30.66,229.96,229.89,0.7]
[1759427941618,30.66,229.95,229.89,0.7]
[1759427941816,4.67841736,229.97,229.89,0.7]
[1759427942008,30.66,229.96,229.89,0.7]
[1759427942207,30.66,229.95,229.89,0.7]
[1759427942822,30.66,229.95,229.9,4.34971726]
[1759427943019,4.67841736,229.97,229.9,4.34971726]
[1759427943020,0.33,230.0,229.91,0.69]
[1759427943228,30.66,229.99,229.91,0.69]
[1759427943837,0.33,230.0,229.93,20.8]
[1759427944012,10.87647521,229.98,229.93,20.8]
[1759427944217,11.20647521,229.98,229.93,20.8]
[1759427944538,11.20647521,229.98,229.93,0.69]
[1759427945038,0.33,229.97,229.91,4.3493628]
[1759427945241,0.33,229.97,229.91,5.0393628]
[1759427945949,15.22474668,229.98,229.92,0.69]
[1759427946440,10.87647521,229.98,229.92,0.69]
[1759427946740,15.22473608,229.98,229.92,0.69]
[1759427947137,10.87647521,229.98,229.93,4.34914974]
[1759427947433,10.87647521,229.98,229.93,5.03914974]
[1759427948736,15.22481704,229.98,229.93,0.69]
[1759427948915,15.55481704,229.98,229.93,0.69]
[1759427949117,15.55481704,229.98,229.92,4.34931145]
[1759427949423,0.33,229.97,229.9,4.34954816]
[1759427949735,0.33,229.96,229.9,25.14954816]
[1759427950036,30.66,229.95,229.9,4.34954816]
[1759427950230,30.66,229.95,229.9,5.03954816]
[1759427950630,30.66,229.95,229.88,0.2]
[1759427950631,0.33,229.94,229.89,4.34989584]
[1759427950828,0.33,229.94,229.89,5.03989584]
[1759427952139,35.00886814,229.95,229.89,4.34989584]
[1759427952343,35.00886814,229.95,229.9,0.69]
[1759427953140,35.00886814,229.95,229.88,5.24009313]
[1759427953141,4.67886814,229.95,229.88,5.24009313]
[1759427953442,30.66,229.94,229.88,5.24009313]
[1759427953616,10.87647521,229.93,229.88,4.55009313]
[1759427953817,10.87647521,229.91,229.89,0.69]
[1759427954544,10.87647521,229.92,229.89,0.69]
[1759427955045,10.87647521,229.96,229.89,0.69]
[1759427955251,10.87647521,229.94,229.9,4.34971726]
[1759427955441,10.87647521,229.94,229.91,0.69]
[1759427955640,10.87647521,229.94,229.9,5.03971726]
[1759427955845,10.87647521,229.94,229.91,0.69]
[1759427957420,10.87647521,229.94,229.88,11.07523925]
[1759427957421,10.87647521,229.94,229.89,4.34990647]
[1759427957623,10.87647521,229.94,229.92,0.69]
[1759427958133,10.87647521,229.94,229.89,0.69]
[1759427958335,10.87647521,229.94,229.9,0.69]
[1759427959249,15.55558993,229.94,229.88,5.24006596]
[1759427960154,15.55558993,229.94,229.88,0.89]
[1759427960325,15.22558993,229.94,229.88,0.2]
[1759427960531,0.33,229.93,229.88,0.2]
[1759427960731,0.33,229.93,229.88,0.89]
[1759427961140,15.22558993,229.94,229.89,0.69]
[1759427961358,10.87647521,229.94,229.89,0.69]
[1759427962228,10.87647521,229.94,229.9,0.69]
[1759427962428,10.87647521,229.94,229.88,4.55008849]
[1759427962429,10.87647521,229.94,229.91,0.69]
[1759427962699,30.66,229.93,229.88,4.55008849]
[1759427962946,30.66,229.94,229.92,0.69]
[1759427963154,134.11497256,230.02,229.92,0.69]
[1759427963155,4.34744804,230.02,229.92,0.69]
[1759427963338,30.66,230.01,229.92,0.69]
[1759427963541,30.99,230.01,229.92,0.69]
[1759427963925,10.87647521,230.0,229.92,0.69]
[1759427964327,4.34801513,229.99,229.92,5.03926941]
[1759427964755,0.33,229.98,229.92,5.03926941]
[1759427964960,10.87647521,229.96,229.92,5.03926941]
[1759427965737,10.87647521,229.96,229.91,20.8]
[1759427965738,15.55511476,229.96,229.91,20.8]
[1759427966146,15.22511476,229.96,229.91,21.5]
[1759427966555,15.22511476,229.96,229.91,25.84945748]
[1759427966856,10.87647521,229.96,229.92,0.7]
[1759427967167,10.87647521,229.96,229.93,0.7]
[1759427967336,10.87647521,229.96,229.91,25.14945748]
[1759427967537,10.87647521,229.96,229.93,0.7]
[1759427969058,10.87647521,229.96,229.93,5.0490958]
[1759427969260,10.87647521,229.96,229.93,0.7]
[1759427969560,30.66,229.95,229.93,0.7]
[1759427970470,30.66,229.96,229.93,0.7]
[1759427971367,35.33861013,229.96,229.9,4.34970869]
[1759427971549,35.00861013,229.96,229.9,4.34970869]
[1759427971754,35.00861013,229.96,229.9,5.04970869]
[1759427971956,30.66,229.96,229.91,0.7]
[1759427972263,30.66,229.96,229.92,0.7]
[1759427973169,35.00859602,229.96,229.92,0.7]
[1759427973867,30.66,229.96,229.92,0.7]
[1759427974858,30.66,229.96,229.92,5.04925391]
[1759427975058,11.20647521,229.98,229.93,0.7]
[1759427975059,10.87647521,229.98,229.93,0.7]
[1759427975267,30.66,229.97,229.93,5.0490246]
[1759427975552,4.34814701,229.99,229.9,10.87416114]
[1759427975553,10.87647521,229.96,229.91,4.34942279]
[1759427975756,10.87647521,229.96,229.9,5.04970486]
[1759427975757,30.66,229.95,229.9,5.04970486]
[1759427976381,10.87647521,229.94,229.88,4.54992476]
[1759427976571,11.20647521,229.94,229.88,4.54992476]
[1759427977278,11.20647521,229.94,229.88,0.2]
[1759427977279,4.34914974,229.93,229.88,0.2]
[1759427977666,4.67914974,229.93,229.88,4.55000939]
[1759427977979,4.67914974,229.93,229.88,5.25000939]
[1759427978354,4.67914974,229.93,229.88,0.9]
[1759427979076,4.34914974,229.93,229.88,0.2]
[1759427979288,0.33,229.93,229.88,0.2]
[1759427979490,0.33,229.93,229.88,0.9]
[1759427979676,4.34896059,229.94,229.88,0.9]
[1759427979984,4.34896059,229.94,229.88,5.2500931]
[1759427981174,10.87647521,229.94,229.88,5.2500931]
[1759427982868,30.66,229.93,229.89,0.7]
[1759427983189,10.87647521,229.92,229.89,0.7]
[1759427983771,30.99,229.91,229.88,0.2]
[1759427984278,0.33,229.9,229.88,0.2]
[1759427984484,41.53647521,229.89,229.88,0.2]
[1759427984877,10.87647521,229.89,229.88,0.2]
[1759427985229,41.53647521,229.89,229.88,0.2]
[1759427986080,15.22638168,229.89,229.88,0.2]
[1759427986388,45.88638168,229.89,229.88,0.2]
[1759427988868,41.53647521,229.89,229.88,0.2]
[1759427990174,4.34935248,229.92,229.88,0.9]
[1759427990488,30.66,229.91,229.89,0.7]
[1759427990673,30.66,229.91,229.88,0.9]
[1759427993209,35.00959322,229.91,229.88,0.2]
[1759427993371,10.87647521,229.9,229.88,0.2]
[1759427994078,10.87647521,229.9,229.88,0.9]
[1759427996594,11.20129364,229.97,229.89,0.7]
[1759427996790,30.66,229.95,229.89,0.7]
[1759427997495,4.34851791,229.97,229.9,4.34971726]
[1759427997671,30.66,229.96,229.91,0.7]
[1759427998704,0.33,229.95,229.89,5.04989936]
[1759427998906,35.00871734,229.96,229.89,4.90324279]
[1759428000702,15.22530735,229.95,229.89,4.90324279]
[1759428000874,15.22530735,229.95,229.9,0.7]
[1759428001191,10.87647521,229.96,229.91,0.7]
[1759428001373,10.87647521,229.94,229.92,0.69]
[1759428001573,10.87647521,229.94,229.89,4.20324279]
[1759428001779,10.87647521,229.94,229.91,0.69]
[1759428001979,10.87647521,229.94,229.89,4.20324279]
[1759428002179,10.87647521,229.94,229.9,0.69]
[1759428002405,15.22515311,229.96,229.9,5.03964616]
[1759428002586,30.66,229.93,229.9,5.03964616]
[1759428003391,35.33915843,229.93,229.88,4.54993791]
[1759428003591,11.20647521,229.92,229.88,0.2]
[1759428003975,10.87647521,229.92,229.88,0.2]
[1759428004590,11.20647521,229.92,229.88,0.2]
[1759428005003,15.22585966,229.92,229.88,0.2]
[1759428005308,15.22585966,229.92,229.88,0.89]
[1759428005679,0.33,229.91,229.88,0.2]
[1759428005896,30.99,229.9,229.88,0.2]
[1759428006372,0.33,229.89,229.88,0.2]
[1759428006601,30.66,229.89,229.88,0.2]
[1759428007104,35.33990647,229.89,229.88,0.2]
[1759428007482,30.66,229.89,229.88,0.2]
[1759428008199,10.87272219,229.94,229.88,0.2]
[1759428008200,0.33,229.93,229.88,0.2]
[1759428008405,30.66,229.92,229.88,0.2]
[1759428008592,0.33,229.95,229.89,0.69]
[1759428008907,30.66,229.94,229.89,0.69]
[1759428009076,30.66,229.93,229.89,0.69]
[1759428009280,10.87647521,229.92,229.89,5.03989446]
[1759428009504,10.87647521,229.92,229.88,0.2]
[1759428009690,11.20647521,229.92,229.88,0.2]
[1759428010091,10.87647521,229.92,229.88,0.2]
[1759428010489,10.87647521,229.92,229.88,0.89]
[1759428010693,10.87647521,229.92,229.89,0.69]
[1759428010995,4.34877147,229.95,229.9,0.69]
[1759428011194,0.33,229.98,229.91,0.69]
[1759428011414,30.66,229.97,229.91,0.69]
[1759428012112,30.99,229.97,229.91,0.69]
[1759428012301,4.34858236,229.96,229.89,4.34987492]
[1759428012617,0.33,229.95,229.88,0.2]
[1759428012791,30.66,229.94,229.88,0.89]
[1759428012991,10.87647521,229.93,229.88,5.24004319]
[1759428013191,10.87647521,229.93,229.89,0.69]
[1759428013501,10.87647521,229.93,229.9,0.69]
[1759428013702,10.87647521,229.93,229.91,0.69]
[1759428013896,10.87647521,229.93,229.89,0.69]
[1759428014103,10.87647521,229.93,229.9,0.69]
[1759428014897,10.87647521,229.93,229.91,0.69]
[1759428015094,10.87647521,229.93,229.92,0.69]
[1759428015299,10.87647521,229.93,229.9,0.69]
[1759428015595,21.13,230.01,229.9,0.69]
[1759428015799,41.53647521,229.99,229.9,0.69]
[1759428016591,45.88460612,229.99,229.91,4.34952807]
[1759428016806,41.53647521,229.99,229.92,0.69]
[1759428018093,45.88455033,229.99,229.92,0.69]
[1759428018721,45.88455033,229.99,229.93,4.34914974]
[1759428019099,41.53647521,229.99,229.93,5.03914974]
[1759428020204,41.53647521,229.99,229.94,0.69]
[1759428020402,41.53647521,229.99,229.95,0.69]
[1759428020913,41.53647521,229.99,229.96,0.69]
[1759428021114,10.87647521,229.99,229.96,0.69]
[1759428021296,30.64,229.98,229.96,0.69]
[1759428021619,30.64,229.98,229.92,20.8]
[1759428021620,30.64,229.98,229.94,0.69]
[1759428021916,30.64,229.98,229.92,20.8]
[1759428022120,30.64,229.98,229.95,0.69]
[1759428022321,30.64,229.98,229.92,20.8]
[1759428022531,30.64,229.98,229.96,0.69]
[1759428022703,30.64,229.98,229.94,0.69]
[1759428022907,30.64,229.98,229.95,4.34877147]
[1759428024429,30.64,229.98,229.91,10.87348754]
[1759428024430,0.33,229.97,229.91,20.8]
[1759428024597,0.33,229.97,229.9,0.7]
[1759428025098,4.67839515,229.97,229.91,4.34952807]
[1759428025525,10.87647521,229.96,229.91,25.14952807]
[1759428025714,10.87647521,229.96,229.91,25.84952807]
[1759428025715,30.64,229.95,229.91,25.84952807]
[1759428025918,30.64,229.95,229.92,0.7]
[1759428026298,30.64,229.95,229.92,5.04924925]
[1759428027028,30.64,229.95,229.92,4.34924925]
[1759428027428,30.64,229.95,229.92,5.04924925]
[1759428028714,30.64,229.95,229.92,4.34924925]
[1759428029117,30.64,229.95,229.92,5.04924925]
[1759428029707,30.64,229.95,229.93,0.7]
[1759428029903,30.64,229.95,229.93,5.04914219]
[1759428030108,30.64,229.95,229.94,0.7]
[1759428030708,4.347815,230.01,229.94,0.7]
[1759428031028,30.64,230.0,229.94,0.7]
[1759428031218,0.33,229.99,229.93,4.34914219]
[1759428031525,30.64,230.0,229.94,0.71]
[1759428032025,30.64,230.0,229.91,20.8]
[1759428032026,0.33,229.99,229.92,4.34917304]
[1759428032217,0.33,229.99,229.93,0.71]
[1759428032950,34.98789071,230.0,229.94,4.34896059]
[1759428033737,10.87647521,229.99,229.93,5.05914073]
[1759428034820,10.87647521,229.99,229.94,0.71]
[1759428035326,10.87647521,229.99,229.95,5.05877147]
[1759428035528,10.87647521,229.99,229.96,0.71]
[1759428036822,4.34764763,230.01,229.96,0.71]
[1759428036823,30.64,229.98,229.96,0.71]
[1759428037036,30.64,229.98,229.96,5.05850757]
[1759428037222,30.64,229.98,229.93,10.87287435]
[1759428037427,30.64,229.98,229.94,5.05896059]
[1759428038442,30.64,229.98,229.94,4.34896059]
[1759428038632,30.64,229.98,229.93,4.34913866]
[1759428038941,30.97,229.98,229.93,5.05913866]
[1759428039240,10.87647521,229.97,229.93,5.05913866]
[1759428039416,10.87647521,229.97,229.94,0.71]
[1759428039815,10.87647521,229.97,229.95,0.71]
[1759428041437,10.87647521,229.97,229.95,5.05875737]
[1759428041612,10.87647521,229.97,229.96,0.71]
[1759428041816,30.64,229.98,229.95,5.05875737]
[1759428042118,30.64,229.98,229.95,25.85875737]
[1759428044036,10.87647521,230.0,229.95,25.85875737]
[1759428044345,10.87647521,229.98,229.95,25.85875737]
[1759428044822,41.49647521,229.98,229.95,25.85875737]
[1759428045213,10.87647521,229.99,229.95,25.85875737]
[1759428045416,30.62,229.98,229.95,25.85875737]
[1759428046420,30.62,229.98,229.92,25.14926162]
[1759428046622,34.96822536,229.98,229.93,0.71]
[1759428046847,34.96822536,229.98,229.89,10.87473165]
[1759428046848,0.33,229.97,229.94,20.8]
[1759428047039,34.96822536,229.98,229.94,20.8]
[1759428047040,0.33,229.96,229.94,20.8]
[1759428047222,30.62,229.95,229.94,20.8]
[1759428047920,4.67803853,229.99,229.94,0.71]
[1759428048146,4.67803853,229.99,229.94,21.51]
[1759428048147,30.62,229.98,229.94,21.51]
[1759428048648,13.39022942,230.02,229.95,0.71]
[1759428048840,30.62,230.01,229.95,0.71]
[1759428049736,10.87647521,230.0,229.95,0.71]
[1759428050052,15.22437676,230.0,229.94,25.85886065]
[1759428050427,15.22437676,230.0,229.91,10.87382019]
[1759428050428,0.33,229.99,229.95,20.8]
[1759428050828,30.95,229.98,229.92,25.85917408]
[1759428051762,30.62,229.98,229.93,0.71]
[1759428052428,30.62,229.98,229.92,25.14917408]
[1759428052629,30.62,229.98,229.92,25.85917408]
[1759428052942,30.62,229.98,229.92,25.14917408]
[1759428053260,30.62,229.97,229.93,0.71]
[1759428053435,30.62,229.97,229.94,0.71]
[1759428053835,30.62,229.97,229.95,0.71]
[1759428054042,30.62,229.97,229.94,4.34892179]
[1759428054555,30.62,229.97,229.94,5.05892179]
[1759428054850,10.87647521,229.96,229.94,0.71]
[1759428056531,10.87647521,229.96,229.93,4.34913002]
[1759428056737,10.87647521,229.96,229.93,5.05913002]
[1759428057556,10.87647521,229.96,229.93,4.34913002]
[1759428057869,10.87647521,229.96,229.94,0.71]
[1759428060246,0.33,230.01,229.95,0.71]
[1759428060449,3.26073679,230.04,229.95,0.71]
[1759428060646,35.29728537,230.03,229.95,0.71]
[1759428060962,38.22800436,230.03,229.95,0.71]
[1759428061348,4.67728537,230.03,229.95,0.71]
[1759428061547,30.62,230.02,229.95,0.71]
[1759428062260,30.62,230.03,229.98,25.14820419]
[1759428062568,30.62,230.03,229.99,21.51]
[1759428062752,30.62,230.03,230.0,0.71]
[1759428064768,10.87647521,230.02,230.0,5.05770759]
[1759428064965,10.87647521,230.02,230.01,0.71]
[1759428065175,30.62,230.03,230.01,0.71]
[1759428065371,11.1220944,230.08,230.01,0.71]
[1759428065372,10.87647521,230.07,230.01,0.71]
[1759428065550,30.62,230.06,230.01,0.71]
[1759428065752,6.77569826,230.08,230.03,20.8]
[1759428065753,6.44569826,230.08,230.03,20.8]
[1759428065966,6.44569826,230.08,230.04,0.71]
[1759428066144,6.44569826,230.08,230.05,0.71]
[1759428067060,6.44569826,230.08,230.06,0.71]
[1759428067266,10.87647521,230.1,230.06,0.71]
[1759428067445,10.87647521,230.1,230.07,20.8]
[1759428067797,10.87647521,230.1,230.07,21.51]
[1759428068273,10.87647521,230.1,230.08,0.71]
[1759428069577,10.87647521,230.1,230.09,0.71]
[1759428069871,30.62,230.11,230.08,4.34623147]
[1759428070073,30.62,230.11,230.08,5.05623147]
[1759428070455,30.62,230.11,230.09,0.71]
[1759428071262,30.62,230.11,230.09,4.34604476]
[1759428071446,30.62,230.11,230.1,0.71]
[1759428072370,10.87647521,230.13,230.1,5.05592058]
[1759428072571,30.6,230.15,230.13,20.8]
[1759428072980,10.87647521,230.14,230.07,10.87647521]
[1759428073281,10.87647521,230.14,230.05,10.86688108]
[1759428073282,0.33,230.13,230.04,20.8]
[1759428073485,0.33,230.13,230.0,15.93428233]
[1759428073486,10.87647521,230.11,230.0,15.93428233]
[1759428073682,0.33,230.1,230.0,5.05780712]
[1759428073885,30.93,230.09,230.03,20.8]
[1759428074094,30.93,230.09,230.01,0.71]
[1759428074289,30.93,230.09,230.03,20.8]
[1759428074589,4.67631432,230.08,230.03,20.8]
[1759428074767,0.33,230.07,230.03,20.8]
[1759428074966,30.6,230.06,230.01,0.71]
[1759428075345,30.6,230.06,230.01,21.51]
[1759428075793,30.6,230.06,230.01,25.85763465]
[1759428076502,30.6,230.06,230.02,5.05726497]
[1759428076700,10.87647521,230.05,230.03,0.71]
[1759428077287,10.87647521,230.05,230.03,20.8]
[1759428077469,10.87647521,230.05,230.03,21.51]
[1759428077787,4.34514982,230.15,230.04,0.71]
[1759428078085,41.47647521,230.14,230.04,21.51]
[1759428078267,41.80647521,230.14,230.05,0.71]
[1759428078660,10.87647521,230.12,230.06,4.34669216]
[1759428078860,10.87647521,230.12,230.06,5.05669216]
[1759428079079,10.87647521,230.12,230.06,20.8]
[1759428079406,0.33,230.11,230.06,20.8]
[1759428079707,10.87647521,230.09,230.07,20.8]
[1759428080402,10.87647521,230.09,230.07,0.71]
[1759428080606,10.87647521,230.09,230.06,20.8]
[1759428080806,10.87647521,230.09,230.07,0.71]
[1759428081293,30.6,230.09,230.07,0.71]
[1759428081897,10.87647521,230.08,230.06,20.8]
[1759428082491,10.87647521,230.08,230.06,21.51]
[1759428082880,10.87647521,230.08,230.06,20.8]
[1759428083085,10.87647521,230.08,230.07,0.71]
[1759428083691,10.87647521,230.13,230.1,20.8]
[1759428083898,41.47647521,230.13,230.1,21.5]
[1759428085310,41.47647521,230.13,230.1,0.7]
[1759428085604,41.47647521,230.13,230.11,0.7]
[1759428086098,30.6,230.13,230.12,0.7]
[1759428086292,30.6,230.14,230.12,0.7]
[1759428086494,30.6,230.14,230.13,21.5]
[1759428087406,30.6,230.14,230.13,25.84537]
[1759428087983,0.1,230.17,230.13,25.84537]
[1759428088188,0.1,230.17,230.14,0.7]
[1759428088892,0.1,230.17,230.13,25.14537]
[1759428089114,0.1,230.17,230.15,0.7]
[1759428089989,0.1,230.17,230.16,0.7]
[1759428091411,0.1,230.17,230.16,5.04480361]
[1759428091609,0.1,230.17,230.16,25.84480361]
[1759428091819,0.1,230.17,230.16,21.5]
[1759428092397,0.1,230.17,230.16,25.84480361]
[1759428096298,0.1,230.17,230.16,5.04480361]
[1759428100403,0.1,230.17,230.16,21.5]
[1759428100616,0.1,230.17,230.16,20.8]
[1759428100934,0.43,230.17,230.09,0.72]
[1759428101101,30.58,230.16,230.09,0.72]
[1759428101304,30.58,230.16,230.1,20.8]
[1759428101529,0.1,230.17,230.11,0.72]
[1759428102023,0.1,230.17,230.11,5.06557774]
[1759428102223,0.1,230.17,230.12,0.72]
[1759428102427,0.1,230.17,230.14,20.8]
[1759428102605,0.1,230.17,230.15,0.72]
[1759428104110,0.1,230.17,230.16,0.72]
[1759428106142,0.1,230.17,230.16,25.86480361]
[1759428107333,0.1,230.17,230.13,10.8632161]
[1759428107334,0.1,230.17,230.13,0.72]
[1759428107510,0.1,230.17,230.11,4.34574768]
[1759428107713,0.1,230.17,230.11,15.93011689]
[1759428107920,0.1,230.17,230.12,0.72]
[1759428108132,0.1,230.17,230.14,20.8]
[1759428108924,0.1,230.17,230.14,0.72]
[1759428110547,10.87647521,230.16,230.12,25.14547861]
[1759428110737,10.87647521,230.16,230.15,20.8]
[1759428113658,11.20647521,230.16,230.09,21.52]
[1759428113824,15.55131399,230.16,230.1,20.8]
[1759428114140,15.55131399,230.16,230.09,0.72]
[1759428114442,15.55131399,230.16,230.09,21.52]
[1759428114816,15.22131399,230.16,230.1,4.34593654]
[1759428115012,10.87647521,230.16,230.11,0.72]
[1759428115540,10.87647521,230.16,230.12,0.72]
[1759428115742,10.87647521,230.16,230.13,21.52]
[1759428115943,0.1,230.17,230.13,21.52]
[1759428115944,0.1,230.17,230.14,0.72]
[1759428116242,0.1,230.17,230.15,0.72]
[1759428116914,0.1,230.17,230.16,20.8]
[1759428117319,0.1,230.17,230.13,20.8]
[1759428117731,0.1,230.17,230.14,0.72]
[1759428117941,0.1,230.17,230.12,4.34553573]
[1759428117942,0.1,230.17,230.15,0.72]
[1759428118149,0.1,230.17,230.16,20.8]
[1759428118344,0.1,230.19,230.17,20.8]
[1759428118526,0.1,230.19,230.17,21.52]
[1759428118724,0.1,230.19,230.18,0.72]
[1759428118950,0.1,230.19,230.18,5.0644261]
[1759428123338,0.1,230.19,230.18,5.5644261]
[1759428123537,0.1,230.22,230.18,16.85993396]
[1759428123738,0.1,230.23,230.21,20.8]
[1759428123938,0.1,230.23,230.22,30.66]
[1759428124240,0.1,230.29,230.25,20.8]
[1759428124841,0.1,230.29,230.24,20.8]
[1759428125036,0.1,230.29,230.24,21.52]
[1759428125440,0.1,230.29,230.24,20.8]
[1759428125730,0.1,230.29,230.21,25.14379231]